[Event "Open NK Rapid 2025 bord 26-50"]
[Site "Helmond, Netherlands"]
[Date "2025.05.03"]
[Round "3.24"]
[White "Overtoom, Reinier"]
[Black "Cornelissen, Jort"]
[Result "0-1"]
[TimeControl "15 min +5 sec increment"]
[WhiteFideId "1047361"]
[BlackFideId "1098160"]
[WhiteElo "1892"]
[BlackElo "1750"]

1. d4 {[%clk 00:15:08]} {[%emt 00:00:02]} Nf6 {[%clk 00:15:07]} {[%emt
00:00:03]} 2. c4 {[%clk 00:15:11]} {[%emt 00:00:02]} e6 {[%clk 00:15:08]}
{[%emt 00:00:04]} 3. Nf3 {[%clk 00:15:10]} {[%emt 00:00:05]} c5 {[%clk
00:15:12]} {[%emt 00:00:02]} 4. Nc3 {[%clk 00:15:09]} {[%emt 00:00:06]} cxd4
{[%clk 00:14:34]} {[%emt 00:00:44]} 5. Nxd4 {[%clk 00:15:09]} {[%emt 00:00:05]}
a6 {[%clk 00:14:12]} {[%emt 00:00:26]} 6. g3 {[%clk 00:15:08]} {[%emt
00:00:05]} Nc6 {[%clk 00:13:43]} {[%emt 00:00:35]} 7. Bg2 {[%clk 00:14:26]}
{[%emt 00:00:48]} Be7 {[%clk 00:13:27]} {[%emt 00:00:20]} 8. O-O {[%clk
00:14:11]} {[%emt 00:00:20]} O-O {[%clk 00:13:29]} {[%emt 00:00:03]} 9. e4
{[%clk 00:13:32]} {[%emt 00:00:44]} Qc7 {[%clk 00:13:04]} {[%emt 00:00:30]} 10.
Nde2 {[%clk 00:12:51]} {[%emt 00:00:46]} b6 {[%clk 00:11:38]} {[%emt 00:01:32]}
11. b3 {[%clk 00:12:50]} {[%emt 00:00:05]} Bb7 {[%clk 00:11:37]} {[%emt
00:00:06]} 12. Bb2 {[%clk 00:12:53]} {[%emt 00:00:02]} Ne5 {[%clk 00:10:46]}
{[%emt 00:00:56]} 13. Rc1 {[%clk 00:12:41]} {[%emt 00:00:17]} Rad8 {[%clk
00:10:35]} {[%emt 00:00:16]} 14. Qc2 {[%clk 00:12:21]} {[%emt 00:00:25]} Qb8
{[%clk 00:08:23]} {[%emt 00:02:17]} 15. Rfd1 {[%clk 00:12:10]} {[%emt
00:00:15]} Qa8 {[%clk 00:07:57]} {[%emt 00:00:32]} 16. h3 {[%clk 00:10:45]}
{[%emt 00:01:31]} d6 {[%clk 00:07:21]} {[%emt 00:00:41]} 17. Nf4 {[%clk
00:10:24]} {[%emt 00:00:25]} Ned7 {[%clk 00:07:03]} {[%emt 00:00:22]} 18. Re1
{[%clk 00:08:54]} {[%emt 00:01:36]} Rc8 {[%clk 00:06:43]} {[%emt 00:00:25]} 19.
Qe2 {[%clk 00:08:33]} {[%emt 00:00:26]} b5 {[%clk 00:03:41]} {[%emt 00:03:08]}
20. cxb5 {[%clk 00:06:45]} {[%emt 00:01:52]} Nc5 {[%clk 00:03:24]} {[%emt
00:00:22]} 21. b4 {[%clk 00:05:35]} {[%emt 00:01:15]} Ncd7 {[%clk 00:03:13]}
{[%emt 00:00:15]} 22. bxa6 {[%clk 00:05:19]} {[%emt 00:00:23]} Bxa6 {[%clk
00:03:01]} {[%emt 00:00:16]} 23. b5 {[%clk 00:04:56]} {[%emt 00:00:29]} Bb7
{[%clk 00:03:05]} {[%emt 00:00:01]} 24. Nd3 {[%clk 00:04:02]} {[%emt 00:00:58]}
Nb6 {[%clk 00:02:56]} {[%emt 00:00:14]} 25. Ra1 {[%clk 00:03:48]} {[%emt
00:00:20]} d5 {[%clk 00:02:40]} {[%emt 00:00:21]} 26. e5 {[%clk 00:02:45]}
{[%emt 00:01:08]} Nfd7 {[%clk 00:02:44]} {[%emt 00:00:01]} 27. a4 {[%clk
00:02:36]} {[%emt 00:00:13]} Nc4 {[%clk 00:02:48]} {[%emt 00:00:01]} 28. f4
{[%clk 00:02:18]} {[%emt 00:00:24]} Qa5 {[%clk 00:01:48]} {[%emt 00:01:05]} 29.
Rec1 {[%clk 00:02:16]} {[%emt 00:00:07]} Nxb2 {[%clk 00:01:27]} {[%emt
00:00:25]} 30. Qxb2 {[%clk 00:02:18]} {[%emt 00:00:04]} d4 {[%clk 00:01:26]}
{[%emt 00:00:06]} 31. Ne4 {[%clk 00:02:03]} {[%emt 00:00:19]} Rxc1+ {[%clk
00:01:13]} {[%emt 00:00:17]} 32. Qxc1 {[%clk 00:02:01]} {[%emt 00:00:08]} Rc8
{[%clk 00:01:06]} {[%emt 00:00:12]} 33. Qb2 {[%clk 00:02:03]} {[%emt 00:00:03]}
Nb6 {[%clk 00:00:43]} {[%emt 00:00:28]} 34. Nf6+ {[%clk 00:01:43]} {[%emt
00:00:25]} gxf6 {[%clk 00:00:37]} {[%emt 00:00:11]} 35. Bxb7 {[%clk 00:01:47]}
{[%emt 00:00:02]} Rc3 {[%clk 00:00:28]} {[%emt 00:00:14]} 36. Qe2 {[%clk
00:01:26]} {[%emt 00:00:24]} Nxa4 {[%clk 00:00:21]} {[%emt 00:00:12]} 37. exf6
{[%clk 00:01:08]} {[%emt 00:00:24]} Bxf6 {[%clk 00:00:25]} {[%emt 00:00:02]} 38.
Bc6 {[%clk 00:01:06]} {[%emt 00:00:07]} Qa7 {[%clk 00:00:14]} {[%emt 00:00:16]}
39. Qe4 {[%clk 00:01:00]} {[%emt 00:00:11]} Nc5 {[%clk 00:00:12]} {[%emt
00:00:06]} 40. Nxc5 {[%clk 00:01:01]} {[%emt 00:00:04]} Qxa1+ {[%clk 00:00:15]}
{[%emt 00:00:02]} 41. Kf2 {[%clk 00:00:57]} {[%emt 00:00:10]} Qa2+ {[%clk
00:00:18]} {[%emt 00:00:02]} 42. Qe2 {[%clk 00:00:46]} {[%emt 00:00:16]} Rc2
{[%clk 00:00:20]} {[%emt 00:00:02]} 43. Bf3 {[%clk 00:00:49]} {[%emt 00:00:02]}
Rxe2+ {[%clk 00:00:24]} 44. Bxe2 {[%clk 00:00:53]} {[%emt 00:00:02]} Qc2 {[%clk
00:00:25]} {[%emt 00:00:03]} 45. Nd3 {[%clk 00:00:54]} {[%emt 00:00:05]} Be7
{[%clk 00:00:25]} {[%emt 00:00:04]} 46. b6 {[%clk 00:00:57]} {[%emt 00:00:03]}
Qb3 {[%clk 00:00:27]} {[%emt 00:00:03]} 0-1

[Event "Open NK Rapid 2025 bord 26-50"]
[Site "Helmond, Netherlands"]
[Date "2025.05.03"]
[Round "3.25"]
[White "Jansen, Marijn"]
[Black "Shalai, Marian"]
[Result "1-0"]
[TimeControl "15 min +5 sec increment"]
[WhiteFideId "1089587"]
[WhiteElo "1880"]
[BlackElo "1746"]

1. e4 {[%clk 00:15:08]} {[%emt 00:00:02]} e5 {[%clk 00:15:07]} {[%emt
00:00:04]} 2. Nf3 {[%clk 00:15:12]} {[%emt 00:00:01]} Nc6 {[%clk 00:15:05]}
{[%emt 00:00:06]} 3. Bc4 {[%clk 00:15:15]} {[%emt 00:00:01]} h6 {[%clk
00:15:04]} {[%emt 00:00:06]} 4. O-O {[%clk 00:15:04]} {[%emt 00:00:17]} Bc5
{[%clk 00:15:06]} {[%emt 00:00:03]} 5. c3 {[%clk 00:15:07]} {[%emt 00:00:02]}
d6 {[%clk 00:14:56]} {[%emt 00:00:15]} 6. d4 {[%clk 00:15:05]} {[%emt
00:00:07]} exd4 {[%clk 00:14:53]} {[%emt 00:00:08]} 7. cxd4 {[%clk 00:15:08]}
{[%emt 00:00:02]} Bb6 {[%clk 00:14:54]} {[%emt 00:00:03]} 8. Nc3 {[%clk
00:14:59]} {[%emt 00:00:14]} Bg4 {[%clk 00:14:56]} {[%emt 00:00:04]} 9. Be3
{[%clk 00:14:21]} {[%emt 00:00:43]} Qe7 {[%clk 00:14:53]} {[%emt 00:00:08]} 10.
Nd5 {[%clk 00:14:15]} {[%emt 00:00:11]} Qd7 {[%clk 00:14:28]} {[%emt 00:00:29]}
11. Nxb6 {[%clk 00:14:13]} {[%emt 00:00:08]} cxb6 {[%clk 00:14:06]} {[%emt
00:00:25]} 12. Qe2 {[%clk 00:13:27]} {[%emt 00:00:52]} Nf6 {[%clk 00:13:48]}
{[%emt 00:00:23]} 13. d5 {[%clk 00:13:23]} {[%emt 00:00:10]} Ne5 {[%clk
00:13:48]} {[%emt 00:00:04]} 14. Bb5 {[%clk 00:13:26]} {[%emt 00:00:03]} Nc6
{[%clk 00:12:31]} {[%emt 00:01:21]} 15. Rac1 {[%clk 00:12:22]} {[%emt
00:01:09]} Rc8 {[%clk 00:12:35]} {[%emt 00:00:02]} 16. dxc6 {[%clk 00:12:17]}
{[%emt 00:00:10]} bxc6 {[%clk 00:12:37]} {[%emt 00:00:03]} 17. Bd3 {[%clk
00:12:13]} {[%emt 00:00:08]} O-O {[%clk 00:11:43]} {[%emt 00:01:00]} 18. Rfd1
{[%clk 00:12:02]} {[%emt 00:00:16]} Qe6 {[%clk 00:11:35]} {[%emt 00:00:12]} 19.
Bf4 {[%clk 00:09:43]} {[%emt 00:02:23]} Nh5 {[%clk 00:11:18]} {[%emt 00:00:23]}
20. Bg3 {[%clk 00:09:35]} {[%emt 00:00:13]} c5 {[%clk 00:10:50]} {[%emt
00:00:34]} 21. Qe3 {[%clk 00:09:07]} {[%emt 00:00:31]} Nxg3 {[%clk 00:10:37]}
{[%emt 00:00:19]} 22. hxg3 {[%clk 00:09:11]} {[%emt 00:00:02]} Qxa2 {[%clk
00:10:20]} {[%emt 00:00:20]} 23. Ra1 {[%clk 00:07:36]} {[%emt 00:01:41]} Qb3
{[%clk 00:10:08]} {[%emt 00:00:17]} 24. Qf4 {[%clk 00:05:10]} {[%emt 00:02:32]}
Qe6 {[%clk 00:09:07]} {[%emt 00:01:06]} 25. Rxa7 {[%clk 00:04:27]} {[%emt
00:00:49]} c4 {[%clk 00:09:09]} {[%emt 00:00:02]} 26. Be2 {[%clk 00:04:00]}
{[%emt 00:00:32]} Rfd8 {[%clk 00:08:24]} {[%emt 00:00:50]} 27. Nd4 {[%clk
00:03:50]} {[%emt 00:00:15]} Qg6 {[%clk 00:07:15]} {[%emt 00:01:13]} 28. Qxg4
{[%clk 00:03:35]} {[%emt 00:00:21]} Qxg4 {[%clk 00:07:16]} {[%emt 00:00:03]} 29.
Bxg4 {[%clk 00:03:39]} {[%emt 00:00:02]} Rc5 {[%clk 00:07:14]} {[%emt
00:00:06]} 30. Rb7 {[%clk 00:03:16]} {[%emt 00:00:29]} d5 {[%clk 00:06:27]}
{[%emt 00:00:52]} 31. Rxb6 {[%clk 00:02:51]} {[%emt 00:00:30]} dxe4 {[%clk
00:06:27]} {[%emt 00:00:04]} 32. Nc2 {[%clk 00:02:41]} {[%emt 00:00:16]} Rf8
{[%clk 00:06:14]} {[%emt 00:00:18]} 33. Rd4 {[%clk 00:02:38]} {[%emt 00:00:08]}
f5 {[%clk 00:06:13]} {[%emt 00:00:05]} 34. Be2 {[%clk 00:02:34]} {[%emt
00:00:10]} c3 {[%clk 00:06:14]} {[%emt 00:00:05]} 35. bxc3 {[%clk 00:02:21]}
{[%emt 00:00:18]} Rxc3 {[%clk 00:06:16]} {[%emt 00:00:02]} 36. Rc4 {[%clk
00:02:24]} Rc8 {[%clk 00:05:51]} {[%emt 00:00:31]} 37. Rxc8+ {[%clk 00:02:26]}
{[%emt 00:00:04]} Rxc8 {[%clk 00:05:53]} {[%emt 00:00:02]} 38. Ne3 {[%clk
00:02:25]} {[%emt 00:00:07]} Kh8 {[%clk 00:05:51]} {[%emt 00:00:07]} 39. Nxf5
{[%clk 00:02:25]} {[%emt 00:00:08]} Kh7 {[%clk 00:05:51]} {[%emt 00:00:03]} 40.
Rb7 {[%clk 00:02:26]} {[%emt 00:00:03]} Rg8 {[%clk 00:05:51]} {[%emt 00:00:04]}
41. Bc4 {[%clk 00:02:30]} {[%emt 00:00:02]} Rf8 {[%clk 00:05:43]} {[%emt
00:00:13]} 42. Rxg7+ {[%clk 00:02:23]} {[%emt 00:00:12]} Kh8 {[%clk 00:05:46]}
{[%emt 00:00:02]} 43. Rf7 {[%clk 00:02:27]} {[%emt 00:00:01]} Rc8 {[%clk
00:05:43]} {[%emt 00:00:08]} 44. Bd5 {[%clk 00:02:19]} {[%emt 00:00:14]} Rc5
{[%clk 00:05:28]} {[%emt 00:00:19]} 45. Bxe4 {[%clk 00:02:22]} {[%emt
00:00:02]} Kg8 {[%clk 00:05:31]} {[%emt 00:00:02]} 46. Nxh6+ {[%clk 00:02:14]}
{[%emt 00:00:13]} Kh8 {[%clk 00:05:26]} {[%emt 00:00:10]} 47. Rh7# {[%clk
00:02:17]} {[%emt 00:00:01]} 1-0

[Event "Open NK Rapid 2025 bord 26-50"]
[Site "Helmond, Netherlands"]
[Date "2025.05.03"]
[Round "4.1"]
[White "Neuwald, Johannes"]
[Black "Bekkink, Sereyo"]
[Result "0-1"]
[TimeControl "15 min +5 sec increment"]
[WhiteFideId "34683240"]
[BlackFideId "1037161"]
[WhiteElo "1839"]
[BlackElo "2064"]

1. e4 {[%clk 00:15:07]} {[%emt 00:00:02]} c5 {[%clk 00:15:06]} {[%emt
00:00:05]} 2. a3 {[%clk 00:15:10]} {[%emt 00:00:03]} Nc6 {[%clk 00:14:03]}
{[%emt 00:01:07]} 3. b4 {[%clk 00:15:12]} {[%emt 00:00:03]} d5 {[%clk
00:14:03]} {[%emt 00:00:06]} 4. b5 {[%clk 00:15:03]} {[%emt 00:00:13]} Nb8
{[%clk 00:13:46]} {[%emt 00:00:22]} 5. exd5 {[%clk 00:14:51]} {[%emt 00:00:16]}
Nf6 {[%clk 00:13:17]} {[%emt 00:00:35]} 6. c4 {[%clk 00:14:24]} {[%emt
00:00:32]} e6 {[%clk 00:13:19]} {[%emt 00:00:04]} 7. dxe6 {[%clk 00:14:08]}
{[%emt 00:00:20]} Bxe6 {[%clk 00:13:22]} {[%emt 00:00:01]} 8. Nc3 {[%clk
00:13:47]} {[%emt 00:00:26]} Bd6 {[%clk 00:12:22]} {[%emt 00:01:06]} 9. Nf3
{[%clk 00:13:41]} {[%emt 00:00:11]} O-O {[%clk 00:11:58]} {[%emt 00:00:29]} 10.
Be2 {[%clk 00:13:36]} {[%emt 00:00:10]} Nbd7 {[%clk 00:10:57]} {[%emt
00:01:06]} 11. O-O {[%clk 00:12:25]} {[%emt 00:01:15]} Ne5 {[%clk 00:10:40]}
{[%emt 00:00:23]} 12. d3 {[%clk 00:10:26]} {[%emt 00:02:04]} Qc7 {[%clk
00:09:48]} {[%emt 00:00:57]} 13. h3 {[%clk 00:10:04]} {[%emt 00:00:26]} Rad8
{[%clk 00:09:32]} {[%emt 00:00:22]} 14. Qc2 {[%clk 00:09:09]} {[%emt 00:01:00]}
Bf5 {[%clk 00:09:09]} {[%emt 00:00:28]} 15. Ne4 {[%clk 00:08:43]} {[%emt
00:00:31]} Nxf3+ {[%clk 00:06:24]} {[%emt 00:02:50]} 16. Bxf3 {[%clk 00:08:40]}
{[%emt 00:00:07]} Bh2+ {[%clk 00:06:07]} {[%emt 00:00:22]} 17. Kh1 {[%clk
00:08:41]} {[%emt 00:00:04]} Be5 {[%clk 00:06:10]} {[%emt 00:00:02]} 18. Rb1
{[%clk 00:06:56]} {[%emt 00:01:51]} Qc8 {[%clk 00:02:33]} {[%emt 00:03:42]} 19.
g4 {[%clk 00:05:33]} {[%emt 00:01:27]} Bg6 {[%clk 00:02:37]} {[%emt 00:00:03]}
20. Bg5 {[%clk 00:05:01]} {[%emt 00:00:36]} Rfe8 {[%clk 00:00:35]} {[%emt
00:02:08]} 21. Rbd1 {[%clk 00:04:41]} {[%emt 00:00:24]} Rd7 {[%clk 00:00:24]}
{[%emt 00:00:16]} 22. Bxf6 {[%clk 00:04:04]} {[%emt 00:00:42]} Bxf6 {[%clk
00:00:28]} {[%emt 00:00:02]} 23. Nxf6+ {[%clk 00:04:04]} {[%emt 00:00:04]} gxf6
{[%clk 00:00:32]} {[%emt 00:00:01]} 24. Bd5 {[%clk 00:02:01]} {[%emt 00:02:08]}
Rde7 {[%clk 00:00:32]} {[%emt 00:00:05]} 25. Qd2 {[%clk 00:02:00]} {[%emt
00:00:05]} Re2 {[%clk 00:00:26]} {[%emt 00:00:12]} 26. Qf4 {[%clk 00:02:01]}
{[%emt 00:00:04]} Qd8 {[%clk 00:00:09]} {[%emt 00:00:22]} 27. Bxb7 {[%clk
00:01:55]} {[%emt 00:00:11]} f5 {[%clk 00:00:07]} {[%emt 00:00:07]} 28. gxf5
{[%clk 00:01:40]} {[%emt 00:00:19]} Bh5 {[%clk 00:00:12]} {[%emt 00:00:01]} 29.
f6 {[%clk 00:01:18]} {[%emt 00:00:27]} R8e5 {[%clk 00:00:14]} {[%emt 00:00:03]}
30. Qg3+ {[%clk 00:01:14]} {[%emt 00:00:08]} Bg6 {[%clk 00:00:16]} {[%emt
00:00:04]} 31. Be4 {[%clk 00:01:09]} {[%emt 00:00:09]} Qxf6 {[%clk 00:00:13]}
{[%emt 00:00:09]} 32. Bxg6 {[%clk 00:01:08]} {[%emt 00:00:06]} hxg6 {[%clk
00:00:17]} {[%emt 00:00:02]} 33. h4 {[%clk 00:01:02]} {[%emt 00:00:10]} Rh5
{[%clk 00:00:14]} {[%emt 00:00:08]} 34. Rfe1 {[%clk 00:00:52]} {[%emt
00:00:15]} Rxf2 {[%clk 00:00:11]} {[%emt 00:00:08]} 35. Kg1 {[%clk 00:00:47]}
{[%emt 00:00:11]} Rf3 {[%clk 00:00:09]} {[%emt 00:00:06]} 36. Qg2 {[%clk
00:00:44]} {[%emt 00:00:08]} Rxh4 {[%clk 00:00:09]} {[%emt 00:00:05]} 37. d4
{[%clk 00:00:47]} {[%emt 00:00:02]} cxd4 {[%emt 00:00:03]} 38. Rf1 {[%clk
00:00:47]} {[%emt 00:00:04]} Rxf1+ {[%emt 00:00:08]} 39. Rxf1 {[%clk 00:00:51]}
Qe6 {[%clk 00:00:11]} {[%emt 00:00:04]} 40. Qd5 {[%clk 00:00:44]} {[%emt
00:00:11]} Qxd5 {[%clk 00:00:12]} {[%emt 00:00:04]} 41. cxd5 {[%clk 00:00:48]}
{[%emt 00:00:01]} Rh5 {[%clk 00:00:17]} 42. a4 {[%clk 00:00:48]} {[%emt
00:00:05]} Rxd5 {[%clk 00:00:20]} 43. Rc1 {[%clk 00:00:52]} {[%emt 00:00:01]}
d3 {[%clk 00:00:24]} {[%emt 00:00:02]} 44. Kf2 {[%clk 00:00:55]} {[%emt
00:00:01]} Kf8 {[%clk 00:00:28]} {[%emt 00:00:02]} 45. Ke3 {[%clk 00:00:55]}
{[%emt 00:00:04]} d2 {[%clk 00:00:30]} {[%emt 00:00:04]} 46. Rd1 {[%clk
00:00:58]} Ke7 {[%emt 00:00:08]} 0-1

[Event "Open NK Rapid 2025 bord 26-50"]
[Site "Helmond, Netherlands"]
[Date "2025.05.03"]
[Round "4.2"]
[White "Roebers, Jan"]
[Black "Nies, Levi"]
[Result "0-1"]
[TimeControl "15 min +5 sec increment"]
[WhiteFideId "1007815"]
[BlackFideId "1061275"]
[WhiteElo "2058"]
[BlackElo "1828"]

1. a3 {[%clk 00:15:09]} e5 {[%clk 00:15:05]} {[%emt 00:00:05]} 2. h3 {[%clk
00:15:14]} {[%emt 00:00:01]} d5 {[%clk 00:15:08]} {[%emt 00:00:01]} 3. g3
{[%clk 00:15:18]} {[%emt 00:00:01]} Be6 {[%clk 00:14:54]} {[%emt 00:00:20]} 4.
Bg2 {[%clk 00:15:21]} {[%emt 00:00:02]} Bc5 {[%clk 00:14:33]} {[%emt 00:00:25]}
5. e3 {[%clk 00:15:25]} {[%emt 00:00:02]} Nd7 {[%clk 00:14:04]} {[%emt
00:00:34]} 6. Ne2 {[%clk 00:15:18]} {[%emt 00:00:12]} c6 {[%clk 00:12:57]}
{[%emt 00:01:13]} 7. d3 {[%clk 00:15:13]} {[%emt 00:00:09]} Ne7 {[%clk
00:12:26]} {[%emt 00:00:35]} 8. b4 {[%clk 00:14:56]} {[%emt 00:00:22]} Bb6
{[%clk 00:12:01]} {[%emt 00:00:31]} 9. Bb2 {[%clk 00:14:59]} {[%emt 00:00:01]}
O-O {[%clk 00:12:04]} {[%emt 00:00:02]} 10. Nd2 {[%clk 00:14:48]} {[%emt
00:00:17]} Ng6 {[%clk 00:12:00]} {[%emt 00:00:09]} 11. Nf3 {[%clk 00:14:15]}
{[%emt 00:00:38]} Qe7 {[%clk 00:11:54]} {[%emt 00:00:11]} 12. Rc1 {[%clk
00:13:15]} {[%emt 00:01:04]} Rad8 {[%clk 00:11:58]} {[%emt 00:00:02]} 13. h4
{[%clk 00:12:50]} {[%emt 00:00:30]} h5 {[%clk 00:11:45]} {[%emt 00:00:18]} 14.
Ng5 {[%clk 00:12:28]} {[%emt 00:00:27]} Bg4 {[%clk 00:11:35]} {[%emt 00:00:15]}
15. Bh3 {[%clk 00:11:00]} {[%emt 00:01:32]} Nf6 {[%clk 00:10:51]} {[%emt
00:00:49]} 16. Qd2 {[%clk 00:10:00]} {[%emt 00:01:05]} c5 {[%clk 00:09:46]}
{[%emt 00:01:10]} 17. Bg2 {[%clk 00:09:20]} {[%emt 00:00:45]} c4 {[%clk
00:09:17]} {[%emt 00:00:35]} 18. O-O {[%clk 00:08:21]} {[%emt 00:01:03]} Qc7
{[%clk 00:08:41]} {[%emt 00:00:41]} 19. d4 {[%clk 00:07:26]} {[%emt 00:01:01]}
e4 {[%clk 00:07:58]} {[%emt 00:00:48]} 20. Nc3 {[%clk 00:06:29]} {[%emt
00:01:02]} Qd7 {[%clk 00:07:44]} {[%emt 00:00:19]} 21. f3 {[%clk 00:05:16]}
{[%emt 00:01:17]} exf3 {[%clk 00:07:44]} {[%emt 00:00:06]} 22. Bxf3 {[%clk
00:04:56]} {[%emt 00:00:24]} Bc7 {[%clk 00:07:21]} {[%emt 00:00:28]} 23. Qf2
{[%clk 00:04:37]} {[%emt 00:00:24]} Rde8 {[%clk 00:07:06]} {[%emt 00:00:21]} 24.
Rce1 {[%clk 00:04:31]} {[%emt 00:00:10]} Bh3 {[%clk 00:04:58]} {[%emt
00:02:13]} 25. Nxh3 {[%clk 00:04:06]} {[%emt 00:00:30]} Qxh3 {[%clk 00:05:02]}
26. Ne2 {[%clk 00:03:28]} {[%emt 00:00:43]} Ne4 {[%clk 00:05:03]} {[%emt
00:00:05]} 27. Bxe4 {[%clk 00:03:22]} {[%emt 00:00:11]} Rxe4 {[%clk 00:05:03]}
{[%emt 00:00:05]} 28. Nf4 {[%clk 00:02:55]} {[%emt 00:00:32]} Nxf4 {[%clk
00:04:17]} {[%emt 00:00:50]} 29. exf4 {[%clk 00:02:39]} {[%emt 00:00:22]} f5
{[%clk 00:03:48]} {[%emt 00:00:34]} 30. Re3 {[%clk 00:01:48]} {[%emt 00:00:55]}
Rf6 {[%clk 00:03:13]} {[%emt 00:00:41]} 31. Rfe1 {[%clk 00:01:04]} {[%emt
00:00:49]} Rg6 {[%clk 00:03:17]} {[%emt 00:00:01]} 32. Qg2 {[%clk 00:01:00]}
{[%emt 00:00:09]} Qxg2+ {[%clk 00:02:31]} {[%emt 00:00:50]} 33. Kxg2 {[%clk
00:01:04]} Bxf4 {[%clk 00:02:32]} {[%emt 00:00:04]} 34. Rxe4 {[%clk 00:00:46]}
{[%emt 00:00:23]} Rxg3+ {[%clk 00:02:02]} {[%emt 00:00:36]} 35. Kf2 {[%clk
00:00:49]} {[%emt 00:00:02]} fxe4 {[%clk 00:02:05]} {[%emt 00:00:02]} 36. Bc1
{[%clk 00:00:46]} {[%emt 00:00:07]} Rf3+ {[%clk 00:01:35]} {[%emt 00:00:36]} 37.
Kg2 {[%clk 00:00:37]} {[%emt 00:00:13]} Bxc1 {[%clk 00:01:37]} {[%emt
00:00:04]} 38. Rxc1 {[%clk 00:00:42]} {[%emt 00:00:01]} Rxa3 {[%clk 00:01:40]}
39. c3 {[%clk 00:00:33]} {[%emt 00:00:14]} Kf7 {[%clk 00:01:31]} {[%emt
00:00:14]} 40. Kg3 {[%clk 00:00:37]} b6 {[%clk 00:01:03]} {[%emt 00:00:33]} 41.
Kf4 {[%clk 00:00:39]} {[%emt 00:00:03]} a5 {[%clk 00:01:04]} {[%emt 00:00:04]}
42. bxa5 {[%clk 00:00:36]} {[%emt 00:00:09]} bxa5 {[%clk 00:00:44]} {[%emt
00:00:24]} 43. Ke5 {[%clk 00:00:38]} {[%emt 00:00:03]} e3 {[%clk 00:00:46]}
{[%emt 00:00:03]} 44. Kxd5 {[%clk 00:00:34]} {[%emt 00:00:09]} e2 {[%clk
00:00:22]} {[%emt 00:00:29]} 45. Kxc4 {[%clk 00:00:34]} {[%emt 00:00:04]} Ke6
{[%clk 00:00:21]} {[%emt 00:00:06]} 46. Re1 {[%clk 00:00:35]} {[%emt 00:00:04]}
Ra2 {[%clk 00:00:25]} {[%emt 00:00:02]} 47. Kb3 {[%clk 00:00:31]} {[%emt
00:00:10]} Rd2 {[%clk 00:00:28]} {[%emt 00:00:01]} 48. Ka4 {[%clk 00:00:17]}
{[%emt 00:00:19]} Kd5 {[%clk 00:00:25]} {[%emt 00:00:08]} 49. Kxa5 {[%clk
00:00:21]} Kc4 {[%clk 00:00:29]} 50. Kb6 {[%clk 00:00:19]} {[%emt 00:00:07]}
Kxc3 {[%clk 00:00:16]} {[%emt 00:00:18]} 51. d5 {[%clk 00:00:18]} {[%emt
00:00:06]} Rxd5 {[%clk 00:00:13]} {[%emt 00:00:07]} 52. Rxe2 {[%clk 00:00:22]}
{[%emt 00:00:01]} Rd4 {[%clk 00:00:17]} {[%emt 00:00:02]} 53. Rg2 {[%clk
00:00:17]} {[%emt 00:00:10]} Rg4 {[%clk 00:00:21]} 54. Rh2 {[%clk 00:00:20]}
{[%emt 00:00:02]} Kd4 {[%clk 00:00:25]} {[%emt 00:00:01]} 55. Kc6 {[%clk
00:00:23]} {[%emt 00:00:02]} Ke4 {[%clk 00:00:29]} 56. Kd6 {[%clk 00:00:26]}
{[%emt 00:00:02]} Kf4 {[%clk 00:00:31]} {[%emt 00:00:03]} 57. Ke6 {[%clk
00:00:23]} {[%emt 00:00:08]} Kg3 {[%clk 00:00:30]} {[%emt 00:00:06]} 58. Rh1
{[%clk 00:00:26]} {[%emt 00:00:02]} Kg2 {[%clk 00:00:31]} {[%emt 00:00:03]} 59.
Ra1 {[%clk 00:00:29]} {[%emt 00:00:02]} Rxh4 {[%clk 00:00:33]} {[%emt
00:00:04]} 60. Kf5 {[%clk 00:00:31]} {[%emt 00:00:03]} Rg4 {[%clk 00:00:20]}
{[%emt 00:00:17]} 61. Ra2+ {[%clk 00:00:23]} {[%emt 00:00:14]} Kh3 {[%clk
00:00:24]} {[%emt 00:00:02]} 62. Ra3+ {[%clk 00:00:26]} {[%emt 00:00:02]} Rg3
{[%clk 00:00:24]} {[%emt 00:00:04]} 63. Ra1 {[%clk 00:00:26]} {[%emt 00:00:04]}
g6+ {[%clk 00:00:23]} {[%emt 00:00:07]} 64. Ke4 {[%clk 00:00:17]} {[%emt
00:00:14]} Kg4 {[%clk 00:00:20]} {[%emt 00:00:08]} 65. Ra6 {[%clk 00:00:14]}
{[%emt 00:00:07]} g5 {[%clk 00:00:23]} {[%emt 00:00:02]} 66. Ke5 {[%clk
00:00:14]} {[%emt 00:00:06]} Re3+ {[%clk 00:00:27]} {[%emt 00:00:01]} 67. Kd4
{[%clk 00:00:16]} {[%emt 00:00:03]} Rf3 {[%clk 00:00:29]} {[%emt 00:00:03]} 68.
Ra1 {[%clk 00:00:18]} {[%emt 00:00:03]} h4 {[%clk 00:00:32]} {[%emt 00:00:02]}
69. Ke4 {[%clk 00:00:21]} {[%emt 00:00:02]} h3 {[%clk 00:00:32]} {[%emt
00:00:06]} 70. Ra2 {[%clk 00:00:17]} {[%emt 00:00:09]} Rg3 {[%clk 00:00:31]}
{[%emt 00:00:06]} 71. Rh2 {[%clk 00:00:16]} {[%emt 00:00:05]} Rg2 {[%clk
00:00:33]} {[%emt 00:00:02]} 72. Rh1 {[%clk 00:00:20]} Kg3 {[%clk 00:00:36]}
{[%emt 00:00:03]} 73. Ra1 {[%clk 00:00:19]} {[%emt 00:00:06]} g4 {[%clk
00:00:37]} {[%emt 00:00:04]} 74. Ra3+ {[%clk 00:00:22]} {[%emt 00:00:02]} Kh2
{[%clk 00:00:41]} 75. Kf4 {[%clk 00:00:23]} {[%emt 00:00:04]} Rg1 {[%clk
00:00:38]} {[%emt 00:00:05]} 76. Ra2+ {[%clk 00:00:24]} {[%emt 00:00:07]} Rg2
{[%clk 00:00:42]} {[%emt 00:00:01]} 77. Ra3 {[%clk 00:00:28]} {[%emt 00:00:01]}
g3 {[%clk 00:00:43]} {[%emt 00:00:04]} 78. Kf3 {[%clk 00:00:22]} {[%emt
00:00:11]} Rf2+ {[%clk 00:00:45]} {[%emt 00:00:03]} 79. Ke3 {[%clk 00:00:26]}
{[%emt 00:00:01]} Rb2 {[%clk 00:00:35]} {[%emt 00:00:15]} 80. Ra1 {[%clk
00:00:18]} {[%emt 00:00:13]} g2 {[%clk 00:00:37]} {[%emt 00:00:02]} 81. Kf3
{[%clk 00:00:15]} {[%emt 00:00:08]} g1=Q {[%clk 00:00:33]} {[%emt 00:00:09]} 82.
Ra6 {[%clk 00:00:16]} {[%emt 00:00:05]} Qf1+ {[%clk 00:00:36]} {[%emt
00:00:02]} 83. Ke4 {[%clk 00:00:19]} {[%emt 00:00:02]} Qxa6 {[%clk 00:00:39]}
{[%emt 00:00:02]} 84. Kd5 {[%emt 00:00:04]} Rb5+ {[%clk 00:00:41]} 85. Kc4
{[%clk 00:00:26]} {[%emt 00:00:01]} Qa4+ {[%clk 00:00:45]} 86. Kc3 {[%clk
00:00:30]} {[%emt 00:00:01]} Rb3+ {[%clk 00:00:49]} 87. Kc2 {[%clk 00:00:35]}
Qa2+ {[%clk 00:00:53]} {[%emt 00:00:01]} 88. Kd1 {[%clk 00:00:39]} {[%emt
00:00:01]} Rb1# {[%clk 00:00:58]} 0-1